bitfinex-derivatives/quotes_SOLF0:USTF0_20251126
["timestamp","ask_amount","ask_price","bid_price","bid_amount"]
[1764168538855,0.04691293,138.01,137.96,0.0528689]
[1764168539555,0.04691293,138.01,137.96,101.5688689]
[1764168539852,0.04691293,138.01,137.96,108.0944689]
[1764168540356,0.04691293,138.01,137.96,0.0528689]
[1764168541255,3.02,137.99,137.96,0.0528689]
[1764168541556,3.02,137.93,137.81,101.6228]
[1764168541759,9.5461,137.96,137.83,6.5317]
[1764168542056,3.02,137.95,137.84,101.6038]
[1764168542455,0.05178967,137.91,137.88,0.05467053]
[1764168542753,0.05178967,137.91,137.89,101.565]
[1764168543057,3.02,138.05,137.93,101.5365]
[1764168543257,3.02,138.05,137.94,101.529]
[1764168543759,3.02,138.05,137.95,101.522]
[1764168544058,0.04608941,138.01,137.99,0.05211652]
[1764168544253,0.05134747,138.01,137.99,0.05211652]
[1764168545955,2.94134747,138.01,137.99,0.05211652]
[1764168546256,2.94134747,138.01,137.91,101.5525]
[1764168546557,28.89,138.05,137.92,101.5432]
[1764168546759,35.4117,138.05,137.94,6.5268]
[1764168546956,2.89,138.02,137.9,127.5581]
[1764168547259,0.04772439,137.97,137.95,0.05582608]
[1764168547453,0.05512147,137.97,137.95,0.05582608]
[1764168549661,0.05512147,137.97,137.95,6.58202608]
[1764168550161,0.05512147,137.97,137.95,0.05582608]
[1764168553163,3.16512147,137.97,137.95,0.05582608]
[1764168554567,0.05512147,137.97,137.95,0.05582608]
[1764168555964,3.16512147,137.97,137.95,0.05582608]
[1764168557069,3.16512147,137.97,137.9,6.5286]
[1764168557270,3.16512147,137.97,137.89,101.5656]
[1764168557474,3.11,137.97,137.89,101.5656]
[1764168557670,3.11,137.97,137.91,6.5281]
[1764168558156,0.04731641,137.95,137.91,6.5282]
[1764168559168,3.15731641,137.95,137.91,6.5282]
[1764168560670,0.04731641,137.95,137.92,101.544]
[1764168561175,0.04731641,137.95,137.93,6.5271]
[1764168561483,101.4441,138.06,137.93,6.5271]
[1764168561484,3.11,138.04,137.97,101.5066]
[1764168561671,25.9,138.07,138.0,6.5239]
[1764168561866,5.1108674,138.06,137.93,101.5328]
[1764168562074,3.11,138.04,137.94,101.5303]
[1764168562276,0.05036029,138.0,137.98,0.04714347]
[1764168562777,3.16036029,138.0,137.98,0.04714347]
[1764168563573,3.16036029,138.0,137.9,25.9]
[1764168563779,3.11,138.0,137.91,101.5515]
[1764168563981,8.24486259,137.99,137.9,25.9]
[1764168564182,3.11,137.97,137.85,108.5990574]
[1764168564376,3.11,137.97,137.84,101.5981]
[1764168564377,9.6367,137.95,137.87,6.5301]
[1764168564678,0.05000656,137.92,137.87,6.5301]
[1764168564873,0.05000656,137.92,137.85,101.594]
[1764168565078,0.05000656,137.92,137.88,6.5296]
[1764168565285,0.05000656,137.92,137.89,101.5661]
[1764168566068,0.05000656,137.92,137.87,101.582]
[1764168566380,0.05000656,137.92,137.86,101.5852]
[1764168566582,0.05000656,137.92,137.87,101.5804]
[1764168566968,0.05000656,137.92,137.9,6.5287]
[1764168567368,3.11,137.99,137.87,101.5804]
[1764168567577,3.11,137.97,137.9,6.5287]
[1764168567787,3.11,137.97,137.88,101.5743]
[1764168568270,0.04648769,137.94,137.91,0.04638507]
[1764168568675,0.04648769,137.94,137.91,6.57468507]
[1764168569075,3.11,137.93,137.91,0.04638507]
[1764168569474,3.11,137.99,137.95,101.5231]
[1764168569675,9.6324,138.04,137.96,6.5257]
[1764168569882,5.14090794,138.03,137.95,101.523]
[1764168570086,3.11,138.04,137.97,101.5082]
[1764168570272,3.11,138.04,137.94,108.5364574]
[1764168570473,0.05458827,138.0,137.98,0.05096942]
[1764168573084,0.05458827,138.0,137.98,6.57586942]
[1764168574980,9.72773923,138.07,138.02,6.5231]
[1764168575175,5.15998749,138.06,138.0,101.4838]
[1764168575380,6.61773923,138.09,138.02,101.4709]
[1764168575583,5.16475262,138.08,138.05,6.5216]
[1764168575781,3.11,138.04,137.94,7.0066574]
[1764168575975,3.15596676,138.0,137.98,0.04839758]
[1764168576590,5.17010773,137.99,137.9,101.5576]
[1764168576793,5.17010773,137.98,137.9,101.5576]
[1764168577096,3.11,138.0,137.94,6.5268]
[1764168577393,5.17273636,137.99,137.93,101.537]
[1764168577582,0.05421716,137.97,137.96,6.5259]
[1764168577782,0.04969272,137.98,137.95,0.04725319]
[1764168577981,3.15969272,137.98,137.95,0.04725319]
[1764168578996,3.11,137.97,137.95,0.04725319]
[1764168579191,3.11,137.97,137.89,25.84]
[1764168579490,108.10113923,138.01,137.91,101.5514]
[1764168579491,6.61773923,138.01,137.91,101.5514]
[1764168579682,5.17622696,138.0,137.93,101.5374]
[1764168579882,9.72773923,138.05,137.95,101.5231]
[1764168580087,5.17472437,138.04,137.96,6.5257]
[1764168580285,0.04914527,138.01,137.99,0.04798371]
[1764168580488,0.05164172,138.01,137.99,0.04798371]
[1764168582288,3.10164172,138.01,137.99,0.04798371]
[1764168582490,3.05,137.99,137.92,6.5278]
[1764168582680,8.214418,137.98,137.89,25.84]
[1764168582888,5.164418,137.97,137.89,25.84]
[1764168583088,3.05,137.98,137.89,25.84]
[1764168583288,3.05,137.98,137.89,127.4044]
[1764168583484,0.05300026,137.95,137.89,127.4044]
[1764168583790,0.05300026,137.95,137.89,25.84]
[1764168584004,0.05300026,137.95,137.92,6.5278]
[1764168584182,0.05300026,137.95,137.91,101.5498]
[1764168584690,0.05300026,137.95,137.89,127.404]
[1764168584887,0.05300026,137.95,137.91,101.5525]
[1764168585094,0.05300026,137.95,137.93,6.5273]
[1764168585487,0.05300026,137.95,137.89,127.404]
[1764168585792,0.05300026,137.95,137.92,101.5449]
[1764168586491,0.05300026,137.95,137.93,6.5273]
[1764168586694,0.05300026,137.95,137.89,25.84]
[1764168586885,3.10300026,137.95,137.84,101.6013]
[1764168587087,0.05336484,137.91,137.85,101.5967]
[1764168587282,0.05336484,137.91,137.87,101.5789]
[1764168587697,3.05,137.97,137.87,101.5819]
[1764168587995,136.26064036,138.02,137.92,101.5441]
[1764168587996,9.66773923,138.02,137.92,101.5441]
[1764168588201,5.16523412,138.01,137.92,101.5441]
[1764168588499,3.05,138.02,137.92,101.5441]
[1764168588800,0.05418835,137.98,137.95,0.04696683]
[1764168590095,0.05418835,137.98,137.95,6.57316683]
[1764168590500,0.05418835,137.98,137.96,6.5258]
[1764168591593,0.05418835,137.98,137.95,0.04696683]
[1764168592399,3.10418835,137.98,137.95,0.04696683]
[1764168592993,3.05,137.96,137.85,108.6022574]
[1764168593187,5.16838127,137.95,137.85,134.3993574]
[1764168593389,3.05,137.95,137.85,134.3993574]
[1764168593594,6.61773923,137.99,137.89,101.5675]
[1764168593901,5.1668227,137.98,137.9,101.5597]
[1764168594109,0.04666938,137.95,137.9,101.5597]
[1764168594400,0.04666938,137.95,137.88,101.5715]
[1764168594697,0.04666938,137.95,137.87,101.5807]
[1764168594900,3.05,138.01,137.91,101.5518]
[1764168595084,5.16533545,138.0,137.91,101.5518]
[1764168595291,3.05,138.01,137.91,101.5518]
[1764168595491,11.68986165,138.0,137.93,6.5269]
[1764168595691,6.5243,138.0,137.93,6.5269]
[1764168595997,3.10479892,137.98,137.95,0.05012158]
[1764168596495,3.05,137.96,137.95,0.05012158]
[1764168597199,3.10479892,137.98,137.95,0.05012158]
[1764168600100,6.61773923,138.03,137.95,1.49012158]
[1764168600400,5.16287628,138.09,138.01,101.4769]
[1764168600597,3.05,138.11,138.0,6.5239]
[1764168600797,8.21161507,138.1,138.0,6.5239]
[1764168601001,8.21161507,138.09,138.0,6.5239]
[1764168601197,3.10412107,138.06,138.03,0.0506158]
[1764168601904,0.05412107,138.06,138.03,0.0506158]
[1764168603002,6.61773923,138.18,138.11,101.4046]
[1764168603204,6.61773923,138.25,138.16,101.3662]
[1764168603412,3.05,138.27,138.2,101.3393]
[1764168603706,6.61773923,138.28,138.2,101.3393]
[1764168603707,1.97211368,138.29,138.21,7.0066574]
[1764168603910,3.05,138.28,138.16,7.0066574]
[1764168604094,3.09622703,138.26,138.24,0.04617291]
[1764168604293,3.09622703,138.26,138.18,101.3525]
[1764168604497,1.97211368,138.29,138.2,101.3378]
[1764168604498,27.93211368,138.29,138.2,101.3378]
[1764168604907,27.93211368,138.29,138.19,108.3521574]
[1764168605107,104.37,138.23,138.09,110.19255575]
[1764168605299,0.05351765,138.17,138.15,0.04931754]
[1764168605504,0.05508774,138.17,138.15,0.04931754]
[1764168606098,2.88,138.25,138.16,101.3672]
[1764168606811,2.88,138.25,138.16,6.5165]
[1764168607109,0.050252,138.22,138.19,0.05188444]
[1764168607705,2.930252,138.22,138.19,0.05188444]
[1764168608609,0.050252,138.22,138.19,0.05188444]
[1764168610113,2.930252,138.22,138.19,0.05188444]
[1764168610615,0.050252,138.22,138.19,0.05188444]
[1764168610814,0.050252,138.22,138.04,101.4566]
[1764168610815,2.88,138.16,138.04,101.4566]
[1764168611014,2.88,138.16,138.05,6.5216]
[1764168611015,25.96,138.15,138.05,6.5216]
[1764168611310,25.96,138.15,138.01,101.4769]
[1764168611311,3.06,138.14,138.01,101.4769]
[1764168611512,3.06,138.12,138.01,101.4792]
[1764168611813,0.04678294,138.08,138.05,0.0461244]
[1764168613211,3.06,138.16,138.07,101.4337]
[1764168613415,3.06,138.2,138.1,101.4126]
[1764168613610,3.06,138.2,138.11,101.4045]
[1764168613807,3.06,138.2,138.08,12.14883288]
[1764168613808,104.401,138.2,138.08,12.14883288]
[1764168614022,104.4148,138.18,138.05,127.4066]
[1764168614313,104.4148,138.18,138.0,366.4437]
[1764168614314,101.438,138.07,137.94,101.5292]
[1764168614514,101.5089,137.97,137.84,101.6009]
[1764168614702,3.06,137.99,137.88,108.1035]
[1764168614703,29.08,137.99,137.88,108.1035]
[1764168614907,3.06,137.99,137.88,108.1042]
[1764168615103,3.06,137.99,137.88,6.5293]
[1764168615303,0.04595916,137.95,137.92,0.05503936]
[1764168616713,0.04595916,137.95,137.92,101.59713936]
[1764168616904,3.06,138.04,137.95,101.5229]
[1764168617109,3.06,138.04,137.94,101.5303]
[1764168617411,3.06,138.04,137.95,101.523]
[1764168617717,3.06,138.08,137.97,101.5081]
[1764168617908,0.04695533,138.04,138.01,0.04567235]
[1764168618109,3.10695533,138.04,138.01,0.04567235]
[1764168618420,0.04695533,138.04,138.01,0.04567235]
[1764168619813,9.62945533,138.04,137.93,101.5379]
[1764168620115,26.06,138.03,137.93,101.5379]
[1764168620418,9.5825,138.04,137.94,6.5265]
[1764168620419,3.06,138.04,137.94,6.5265]
[1764168621009,0.05000897,138.0,137.98,0.05247663]
[1764168622314,0.05000897,138.0,137.98,101.55207663]
[1764168622516,0.05000897,138.0,137.98,0.05247663]
[1764168624816,3.11000897,138.0,137.98,0.05247663]
[1764168625510,0.05000897,138.0,137.98,0.05247663]
[1764168627118,3.11000897,138.0,137.98,0.05247663]
[1764168628520,3.11000897,138.0,137.89,134.29344292]
[1764168628521,3.06,137.99,137.9,101.5602]
[1764168628727,3.06,138.02,137.93,101.5372]
[1764168629326,3.06,138.02,137.94,101.5276]
[1764168629625,0.0510216,137.99,137.97,0.05087422]
[1764168631820,3.1110216,137.99,137.97,0.05087422]
[1764168632329,3.1110216,137.99,137.88,127.6117]
[1764168632525,3.06,137.99,137.9,101.56]
[1764168632828,3.06,137.99,137.91,101.5519]
[1764168633022,3.06,137.99,137.93,6.5272]
[1764168633329,0.04913061,137.97,137.95,0.02065685]
[1764168633528,3.06,137.96,137.95,0.02065685]
[1764168633827,0.04913061,137.97,137.95,0.02065685]
[1764168635634,3.10913061,137.97,137.95,0.02065685]
[1764168636823,3.06,137.96,137.82,8.77585575]
[1764168637022,3.06,137.85,137.71,8.77585575]
[1764168637226,3.06,137.75,137.63,8.77585575]
[1764168637425,3.06,137.64,137.52,13.38564773]
[1764168637633,3.06,137.57,137.43,13.38564773]
[1764168637818,101.786,137.6,137.38,13.38564773]
[1764168637819,104.8979,137.53,137.38,13.38564773]
[1764168638022,12.1963561,137.54,137.3,133.23347804]
[1764168638023,3.06,137.43,137.3,13.38564773]
[1764168638231,3.06,137.38,137.25,13.38564773]
[1764168638530,105.0253,137.36,137.2,13.38564773]
[1764168638734,0.04585382,137.33,137.29,102.0076]
[1764168638935,3.06,137.42,137.29,26.2]
[1764168639130,3.06,137.33,137.16,102.105]
[1764168639331,3.06,137.29,137.07,102.1714]
[1764168639521,102.0238,137.28,137.11,102.1416]
[1764168639722,102.0238,137.28,137.0,100.38564773]
[1764168639723,3.06,137.24,137.0,100.38564773]
[1764168639919,12.1963561,137.29,136.96,1266.6914627]
[1764168639920,3.06,137.17,136.97,13.38564773]
[1764168640128,3.06,137.06,136.93,102.2759]
[1764168640325,3.06,137.12,137.06,0.04858321]
[1764168640528,102.0895,137.19,137.06,0.04858321]
[1764168640529,102.1121,137.16,137.06,0.04858321]
[1764168640727,108.6682,137.17,136.93,135.4111048]
[1764168640926,3.06,137.21,137.1,0.04858321]
[1764168641140,3.06,137.21,137.07,26.5]
[1764168641326,3.08,137.18,137.07,26.5]
[1764168641528,3.08,137.18,137.08,102.1677]
[1764168641732,3.13122701,137.14,137.12,0.04676915]
[1764168641937,0.05609954,137.14,137.12,0.04675318]
[1764168642323,169.3916748,137.5,137.22,102.0604]
[1764168642324,3.08,137.33,137.22,102.0604]
[1764168642626,101.9477,137.38,137.22,102.0604]
[1764168642627,3.08,137.38,137.3,102.0006]
[1764168642836,3.08,137.43,137.31,26.6]
[1764168643136,3.08,137.48,137.35,101.9623]
[1764168643326,0.05488431,137.43,137.4,0.05238779]
[1764168643723,3.08,137.52,137.4,0.05238779]
[1764168644026,3.08,137.51,137.38,101.9417]
[1764168644231,3.08,137.51,137.4,101.9243]
[1764168644438,3.08,137.51,137.4,26.66]
[1764168644831,0.05344835,137.47,137.44,0.0557509]
[1764168645834,3.08,137.56,137.45,103.3497]
[1764168646040,3.08,137.56,137.46,26.64]
[1764168646826,0.05176545,137.52,137.5,0.04604941]
[1764168647043,101.7919,137.59,137.5,0.04604941]
[1764168647044,101.7908,137.59,137.5,0.04604941]
[1764168647338,3.08,137.56,137.44,101.8973]
[1764168647922,0.04660104,137.51,137.49,0.05442942]
[1764168648125,3.08,137.56,137.49,0.05442942]
[1764168648534,0.04988675,137.54,137.49,0.05442942]
[1764168651145,3.08,137.53,137.41,101.9199]
[1764168651344,3.08,137.53,137.42,26.72]
[1764168651741,3.08,137.57,137.42,26.72]
[1764168652139,104.8868,137.57,137.42,26.72]
[1764168652440,3.13376352,137.51,137.42,26.72]
[1764168652629,3.13376352,137.51,137.29,204.0156]
[1764168652630,3.08,137.48,137.29,204.0156]
[1764168652830,3.08,137.52,137.35,101.9638]
[1764168653246,3.08,137.47,137.36,26.72]
[1764168653543,0.04928754,137.43,137.4,0.05332152]
[1764168656139,3.12928754,137.43,137.4,0.05332152]
[1764168657346,0.04928754,137.43,137.4,0.05332152]
[1764168657645,3.12928754,137.43,137.4,0.05332152]
[1764168658048,0.04928754,137.43,137.4,0.05332152]
[1764168659436,3.12928754,137.43,137.24,189.2214]
[1764168659641,3.08,137.23,137.06,102.18]
[1764168659944,3.08,137.02,136.83,204.6956]
[1764168660147,24.84,136.97,136.63,307.5111]
[1764168660333,105.4107,136.87,136.64,102.4944]
[1764168660533,3.08,137.03,136.74,0.05251921]
[1764168660854,102.1779,137.07,136.89,102.3066]
[1764168661036,102.1779,137.07,136.81,307.1012]
[1764168661037,3.08,137.0,136.72,102.4352]
[1764168661241,102.2062,137.03,136.86,102.328]
[1764168661545,3.08,136.95,136.76,27.24]
[1764168661746,3.08,136.97,136.72,102.4345]
[1764168661941,105.4156,136.86,136.7,102.4468]
[1764168662139,102.3235,136.88,136.64,33.1359048]
[1764168662140,3.08,136.78,136.64,33.1359048]
[1764168662340,3.08,136.78,136.6,102.5238]
[1764168662645,102.318,136.88,136.71,102.44]
[1764168662850,0.04629689,136.81,136.78,0.0493905]
[1764168663047,3.08,137.0,136.87,102.3208]
[1764168663356,3.08,137.0,136.89,102.3066]
[1764168663544,3.08,137.0,136.87,135.4567048]
[1764168663746,3.08,137.06,136.92,102.2838]
[1764168663950,0.05167614,137.0,136.98,0.05410304]
[1764168664248,3.08,137.07,136.96,27.62]
[1764168664545,3.08,137.07,136.97,102.2458]
[1764168664751,3.08,137.12,136.99,102.2304]
[1764168664953,105.2602,137.07,136.92,204.5663]
[1764168665247,0.05335645,137.01,136.98,0.05463622]
[1764168665446,3.13104688,137.01,136.98,0.05115565]
[1764168665656,0.05104688,137.01,136.98,0.05115565]
[1764168666946,3.12,137.11,136.99,131.3919]
[1764168667149,3.12,137.11,137.01,102.2166]
[1764168667355,3.12,137.23,136.98,102.2421]
[1764168667653,87.42,137.38,136.63,233.14]
[1764168667654,3.12,137.06,136.95,102.2619]
[1764168667854,0.04927381,137.02,137.0,102.2212]
[1764168668051,0.04908828,137.02,137.01,129.937]
[1764168668352,3.12,137.13,137.01,27.72]
[1764168668650,3.12,137.12,137.02,129.9484]
[1764168668856,3.12,137.12,137.02,27.74]
[1764168669151,105.2989,137.07,136.96,27.84]
[1764168669456,0.04815967,137.03,137.0,0.05401135]
[1764168670047,3.12,137.18,137.06,102.1776]
[1764168670249,3.12,137.16,137.05,27.84]
[1764168670452,3.12,137.15,137.05,27.84]
[1764168670844,3.12,137.15,137.05,130.0267]
[1764168671050,102.0663,137.22,137.09,0.04655721]
[1764168671051,0.05102042,137.11,137.09,0.04655721]
[1764168671251,0.05336241,137.11,137.09,0.0497229]
[1764168672953,3.1,137.1,137.03,27.84]
[1764168673156,102.1106,137.16,137.03,27.84]
[1764168673157,105.2208,137.15,137.03,27.84]
[1764168673347,3.1,137.15,137.05,102.1859]
[1764168673543,3.1,137.2,137.08,102.1613]
[1764168673956,0.0481236,137.15,137.13,0.04846044]
[1764168674156,3.1,137.21,137.13,102.17861026]
[1764168674353,3.1,137.25,137.14,102.12]
[1764168674551,3.1,137.25,137.13,102.1253]
[1764168674954,3.1,137.25,137.12,27.82]
[1764168674955,105.155,137.24,137.12,27.82]
[1764168675152,3.1,137.21,137.12,27.82]
[1764168675352,3.15102456,137.19,137.17,0.0471933]
[1764168675551,0.05102456,137.19,137.17,0.0471933]
[1764168676253,3.15102456,137.19,137.17,0.0471933]
[1764168676448,3.15102456,137.19,137.12,27.82]
[1764168677358,3.15102456,137.19,137.14,0.05083508]
[1764168677856,3.1,137.17,137.14,0.05083508]
[1764168678059,3.15102456,137.19,137.14,0.05083508]
[1764168678853,102.1046,137.17,137.06,27.8]
[1764168679052,105.1961,137.18,137.06,27.8]
[1764168679257,105.1961,137.18,136.97,19.06441373]
[1764168679258,102.164,137.09,136.97,19.06441373]
[1764168679461,102.1639,137.09,136.95,27.8]
[1764168679664,3.1,137.11,136.95,130.0613]
[1764168679849,0.05392326,137.04,137.02,0.05606547]
[1764168680052,0.04953721,137.04,137.02,0.05036716]
[1764168681065,0.04953721,137.04,136.95,27.8]
[1764168681260,105.2646,137.09,136.95,27.8]
[1764168681261,108.7439,137.07,136.95,27.8]
[1764168681467,102.1863,137.06,136.95,27.8]
[1764168681662,102.1684,137.08,136.95,27.8]
[1764168681969,0.04665702,137.03,137.0,0.05540305]
[1764168683260,102.246,136.98,136.84,121.40741373]
[1764168683563,3.1,137.01,136.88,121.37841373]
[1764168683757,102.1929,137.05,136.89,102.3065]
[1764168683960,102.1929,137.05,136.89,102.3042]
[1764168684361,0.04874206,136.98,136.96,0.05005692]
[1764168684668,108.7624,137.05,136.96,0.05005692]
[1764168684669,3.1,137.12,136.98,102.2392]
[1764168684855,3.1,137.12,136.97,27.76]
[1764168685064,105.2611,137.09,136.97,27.76]
[1764168685569,102.1719,137.08,136.97,27.76]
[1764168685764,3.1,137.03,136.97,27.76]
[1764168686071,0.05535536,137.04,136.97,27.76]
[1764168686369,102.25685536,137.04,136.97,27.76]
[1764168686671,105.3304,137.0,136.97,27.76]
[1764168686872,105.37678636,137.0,136.97,27.81142965]
[1764168687169,0.04638636,137.0,136.97,0.05142965]
[1764168688469,0.04638636,137.0,136.97,1.51142965]
[1764168688772,111.8551,137.06,136.97,0.05142965]
[1764168689082,102.1741,137.08,136.96,102.2554]
[1764168689461,6.5679,137.08,136.96,108.829]
[1764168689662,0.04783135,137.03,137.01,0.04788332]
[1764168689865,0.04906558,137.03,137.01,0.04788332]
[1764168690972,0.04906558,137.03,136.92,102.2859]
[1764168690973,3.1,137.02,136.91,102.2927]
[1764168691170,102.1931,137.05,136.91,102.2927]
[1764168691371,102.1931,137.05,136.93,102.278]
[1764168691576,108.7691,137.04,136.93,6.5747]
[1764168691771,105.3158,137.02,136.9,27.72]
[1764168691958,0.05384739,136.97,136.95,0.04722347]
[1764168692157,0.0503954,136.97,136.95,0.04742716]
[1764168692564,3.1,137.03,136.95,0.04742716]
[1764168692963,102.1836,137.06,136.95,0.04742716]
[1764168693265,102.1985,137.04,136.92,102.284]
[1764168693469,6.5706,137.03,136.93,6.5746]
[1764168693672,0.04915019,136.99,136.97,0.04733567]
[1764168694275,0.04915019,136.99,136.81,102.369]
[1764168694276,102.2798,136.93,136.81,102.369]
[1764168694472,6.5759,136.92,136.81,102.3683]
[1764168694665,3.1,136.94,136.82,102.3617]
[1764168694861,105.3448,136.98,136.85,102.3394]
[1764168695067,3.1,136.95,136.85,27.7]
[1764168695275,0.05147606,136.91,136.89,0.05066902]
[1764168696469,0.05147606,136.91,136.84,102.3438]
[1764168696470,3.1,136.9,136.81,102.3684]
[1764168696673,3.1,136.95,136.84,102.3465]
[1764168697173,102.2246,137.01,136.88,102.3159]
[1764168697378,0.05078026,136.96,136.93,0.04761118]
[1764168697567,3.1,136.95,136.84,102.3467]
[1764168697769,105.3653,136.95,136.84,102.3467]
[1764168697965,102.2736,136.94,136.82,102.3614]
[1764168698269,3.1,136.95,136.84,102.3459]
[1764168698469,102.2724,136.94,136.82,102.3614]
[1764168698780,0.04946831,136.89,136.87,0.05092972]
[1764168698980,0.04677709,136.89,136.87,0.05092972]
[1764168699677,0.04677709,136.89,136.87,27.83092972]
[1764168699875,3.1,136.95,136.87,130.15402972]
[1764168700070,3.1,136.95,136.88,6.577]
[1764168700473,3.1,136.88,136.77,102.3975]
[1764168700670,3.1,136.88,136.74,27.82]
[1764168700671,3.1,136.84,136.74,27.82]
[1764168700884,3.14986211,136.8,136.78,0.04919543]
[1764168701882,0.04986211,136.8,136.78,0.04919543]
[1764168702669,0.04986211,136.8,136.68,102.4639]
[1764168702670,105.5752,136.78,136.65,190.0055]
[1764168702870,3.18,136.78,136.67,130.2692]
[1764168703183,3.18,136.78,136.7,6.5858]
[1764168703378,3.18,136.83,136.68,102.4645]
[1764168703683,3.18,136.76,136.58,102.5409]
[1764168703881,3.18,136.76,136.57,102.5487]
[1764168703882,3.18,136.74,136.63,102.504]
[1764168704184,9.7622,136.79,136.68,6.5867]
[1764168704484,3.18,136.79,136.69,130.3179]
[1764168704687,0.05453891,136.75,136.73,0.039564]
[1764168707687,3.18,136.84,136.76,102.4042]
[1764168707885,3.18,136.84,136.77,136.7814]
[1764168708079,3.18,136.84,136.77,34.3823]
[1764168708383,3.18,136.84,136.77,27.8]
[1764168708584,0.05051724,136.82,136.79,0.05436157]
[1764168708787,0.05051724,136.82,136.8,6.5813]
[1764168709088,0.05051724,136.82,136.79,102.43746157]
[1764168709288,0.05051724,136.82,136.8,6.5809]
[1764168710185,0.05051724,136.82,136.8,108.9575]
[1764168710881,0.05051724,136.82,136.8,6.5809]
[1764168711191,0.05051724,136.82,136.79,0.05436157]
[1764168711485,0.05051724,136.82,136.8,108.9568]
[1764168711984,0.05051724,136.82,136.8,6.5809]
[1764168712184,0.05051724,136.82,136.8,108.9572]
[1764168712593,6.5756,136.92,136.83,6.5798]
[1764168712885,19.06441373,136.95,136.84,27.72]
[1764168713086,9.7546,136.95,136.85,6.5788]
[1764168713286,3.18,136.95,136.86,102.3301]
[1764168713788,0.05236573,136.92,136.89,0.05105121]
[1764168713989,3.18,136.92,136.89,0.05105121]
[1764168714589,6.5749,136.94,136.89,0.05105121]
[1764168714590,9.7549,136.94,136.89,0.05105121]
[1764168714786,102.256,136.97,136.89,0.05105121]
[1764168714787,3.18,136.93,136.89,0.05105121]
[1764168714985,0.05185033,136.92,136.89,0.05105121]
[1764168715291,3.18,136.91,136.77,164.3934]
[1764168715484,3.18,136.91,136.81,102.3693]
[1764168715686,3.18,136.91,136.82,102.3604]
[1764168715886,3.18,136.91,136.83,27.72]
[1764168716090,105.4402,136.96,136.84,102.3464]
[1764168716295,0.05596699,136.91,136.89,0.04711593]
[1764168716497,0.0519675,136.91,136.89,0.04711593]
[1764168718193,0.0519675,136.91,136.83,102.35]
[1764168718194,3.18,136.89,136.76,102.4061]
[1764168718493,3.18,136.89,136.8,6.581]
[1764168718795,3.18,136.89,136.8,102.3759]
[1764168719191,0.05197426,136.86,136.83,0.04703624]
[1764168719396,0.05197426,136.86,136.84,27.72]
[1764168720092,0.05197426,136.86,136.83,0.04703624]
[1764168720288,9.7547,136.94,136.87,6.5778]
[1764168720689,3.18,136.98,136.88,102.3156]
[1764168720999,3.18,137.0,136.89,27.68]
[1764168721189,105.4253,136.98,136.89,27.68]
[1764168721383,3.18,136.94,136.92,0.05529998]
[1764168721984,0.05232734,136.95,136.92,0.05529998]
[1764168722494,0.05232734,136.95,136.93,6.5749]
[1764168722785,3.23232734,136.95,136.92,0.05529998]
[1764168723696,0.05232734,136.95,136.92,0.05529998]
[1764168724793,3.23232734,136.95,136.92,0.05529998]
[1764168725694,0.05232734,136.95,136.92,0.05529998]
[1764168725898,2.97232734,136.95,136.92,0.05529998]
[1764168726097,0.05232734,136.95,136.92,0.05529998]
[1764168726395,2.92,137.01,136.93,102.2792]
[1764168726612,2.92,137.01,136.78,598.1658]
[1764168726901,2.92,136.86,136.73,102.4283]
[1764168727110,2.92,136.86,136.78,34.202]
[1764168727402,0.04752027,136.83,136.81,0.05208872]
[1764168727704,2.96752027,136.83,136.81,0.05208872]
[1764168728097,2.92,136.82,136.81,0.05208872]
[1764168728299,2.92,136.82,136.78,27.62]